Cogmind - Beta 17.1 @@@ ROGUE MODE // 2026.09.13 @ 12:32:32 Player: Somberlain Result: Destroyed by Piercing Trap Performance ------------- Evolutions (0) 0 Regions Visited (2) 400 Robots Destroyed (19) 95 Value Destroyed (362) 362 Prototype IDs (1) 20 Alien Tech Used (0) 0 Bonus (40) 40 TOTAL SCORE: 917 Bonus ------- Follower Combat Kills 40 Cogmind --------- Core Integrity 0/250 Matter 290/300 Energy 99/100 System Corruption 0% Temperature Cool (2) Movement Flying (37) Location -10/Subcaves Parts ------- > --- POWER (1) -------- (None) > --- PROPULSION (2) --- Flight Unit Flight Unit > --- UTILITY (2) ------ Hacking Suite V3-11A's Pendant > --- WEAPON (2) ------- Makeshift Axe > --- INVENTORY (5) ---- Flight Unit Improved Heat Sink Riot Gun Plasma Cutter Peak State ------------ > --- POWER ------------ Light Ion Engine > --- PROPULSION ------- Flight Unit Flight Unit > --- UTILITY ---------- Hacking Suite V3-11A's Pendant > --- WEAPON ----------- Mining Laser Makeshift Axe > --- INVENTORY -------- Flight Unit Flight Unit Improved Heat Sink Riot Gun Plasma Cutter [Rating: 15] Favorites ----------- Power Light Ion Engine Engine Light Ion Engine Propulsion Flight Unit Leg Aluminum Leg Flight Unit Flight Unit Utility Small Storage Unit Device V3-11A's Pendant Storage Small Storage Unit Processor Transport Network Coupler Hackware Hacking Suite Weapon Light Assault Rifle Energy Gun Riot Gun Ballistic Gun Light Assault Rifle Special Weapon Mining Laser Slashing Weapon Makeshift Axe Build | -11 -10 -10 ------- Run | Yrd Mat Sub Slots Evolved . | . . . Power . | . . . Propulsion . | . . . Utility . | . . . Weapon . | . . . Parts Attached 23 | 6 11 6 Power 2 | 1 . 1 Engine 2 | 1 . 1 Core . | . . . Reactor . | . . . Propulsion 7 | 2 4 1 Treads . | . . . Leg 2 | 2 . . Wheel . | . . . Hover . | . . . Flight 5 | . 4 1 Utility 4 | 1 2 1 Device 1 | . . 1 Storage 1 | 1 . . Processor 1 | . 1 . Hackware 1 | . 1 . Protection . | . . . Artifact . | . . . Weapon 10 | 2 5 3 Energy Gun 1 | . . 1 Energy Cannon . | . . . Ballistic Gun 6 | 2 4 . Ballistic Cannon . | . . . Launcher . | . . . Special Weapon 2 | . 1 1 Impact Weapon . | . . . Slashing Weapon 1 | . . 1 Piercing Weapon . | . . . Special Melee Weapon . | . . . Unidentified Prototypes 1 | . . 1 Parts Lost 3 | . 1 2 Power 1 | . . 1 Propulsion 2 | . 1 1 Utility . | . . . Weapon . | . . . Highest Loss Streak 2 | . 1 2 To Critical Strikes . | . . . Average Backups 6 | . 5 7 Power . | . . . Propulsion 2 | . 2 2 Utility . | . . 1 Weapon 1 | . 1 2 Tool/Special . | . . . Unused Backups 3 | . 1 2 Power . | . . . Propulsion 2 | . 1 1 Utility 1 | . . 1 Weapon . | . . . Tool/Special . | . . . Average Slot Usage (%) 80 | . 81 79 Engine 3 | . 2 3 Leg 1 | . 3 . Flight 26 | . 23 27 Device 2 | . . 3 Storage 11 | . 14 10 Processor 2 | . 6 . Hackware 9 | . 2 14 Energy Gun 2 | . . 4 Ballistic Gun 15 | . 27 7 Special Weapon 3 | . . 5 Peak Build Rating 15 | 6 9 15 Average Rating 8 | 4 6 10 On Entrance 5 | . 6 9 Avg Prop Armor Cover (%) . | . . . Naked Turns . | . . . Heaviest Build 12 | 12 12 9 Greatest Support 20 | 20 20 8 Greatest Overweight (x) 2 | . 2 1 Average Overweight (x) . | . . . Largest Inventory Capacity 8 | 8 8 8 Average Capacity 7 | 7 8 7 Most Carried 8 | . 8 8 Average Carried 6 | . 5 7 Final Capacity 8 | 8 8 5 Final Carried 8 | . 8 4 Class Distribution -------------------- 100% | Mutant Dominant Class ---------------- Mutant | -10/Materials Mutant | -10/Subcaves Resources | -11 -10 -10 ----------- Run | Yrd Mat Sub Matter Collected 603 | 223 296 84 Remotely . | . . . Salvage Created 515 | . 477 38 Parts 40 | . 37 3 Haulers Intercepted 2 | . 2 . Recyclers Shooed . | . . . Parts Field Recycled . | . . . Retrieved Matter . | . . . Parts Self-Destructed . | . . . Prevented . | . . . Parts Restored . | . . . Kills | -11 -10 -10 ------- Run | Yrd Mat Sub Combat Hostiles Destroyed 12 | . 11 1 Guns 12 | . 11 1 Classes Destroyed 7 | . 6 1 Worker 1 | . 1 . Hauler 2 | . 2 . Operator 3 | . 3 . Watcher 1 | . 1 . Swarmer 6 | . 6 . Grunt 5 | . 5 . Subdweller 1 | . . 1 Best Kill Streak 5 | . 5 1 Combat Bots Only 3 | . 3 1 Max Kills in Single Turn 1 | . 1 1 Gunslinging . | . . . Exploded . | . . . Melee . | . . . Uniques/NPCs Destroyed . | . . . Combat | -11 -10 -10 -------- Run | Yrd Mat Sub Hostile Shots Fired 64 | . 55 9 Missed 26 | . 21 5 Hits 38 | . 34 4 Projectile 38 | . 34 4 Damage Taken 603 | . 425 178 Core 259 | . 168 91 Absorbed by Shields . | . . . Core Remaining (%) 100 | 100 . . Volleys Fired 86 | . 73 13 Largest 2 | . 2 2 Hottest 120 | . 100 120 Shots Fired 163 | . 145 18 Gun 153 | . 144 9 Cannon . | . . . Launcher . | . . . Special 10 | . 1 9 Kinetic 148 | . 144 4 Thermal 10 | . 1 9 Explosive . | . . . Electromagnetic 5 | . . 5 Robot Hit Streak 8 | . 5 8 Robot Miss Streak 8 | . 8 . Penetration Max . | . . . Secondary Targets 1 | . 1 . Max Gunslinging Chain 1 | . 1 . Shots Hit Robots 74 | . 69 5 Core Hits 40 | . 39 1 Critical Kills . | . . . Critical Parts Destroyed . | . . . Critical Strikes . | . . . Melee Attacks . | . . . Impact . | . . . Slashing . | . . . Piercing . | . . . Sneak Attacks . | . . . Combat Hostiles . | . . . Follow-up Attacks . | . . . Damage Inflicted 681 | . 640 41 Guns 600 | . 559 41 Cannons . | . . . Explosions 81 | . 81 . Melee . | . . . Ramming . | . . . Kinetic 590 | . 559 31 Thermal 81 | . 81 . Explosive . | . . . Electromagnetic 10 | . . 10 Impact . | . . . Slashing . | . . . Piercing . | . . . Highest Corruption . | . . . Average Corruption . | . . . Corruption Purged . | . . . Corruption Blocked . | . . . Overload Shots . | . . . Overflow Damage 48 | . 48 . Projectiles . | . . . Explosions 48 | . 48 . Melee . | . . . Knockbacks . | . . . Impact . | . . . Kinetic . | . . . Secondary . | . . . Self-Inflicted Damage 98 | . 98 . Shots 1 | . 1 . Rammed . | . . . Targets Rammed . | . . . Kicked . | . . . Crushed . | . . . Highest Temperature 8 | . 8 . Average Temperature 3 | . 3 . Received Heat Transfer 102 | . 78 24 Siege Activations . | . . . Martial Activations . | . . . Shielding Activations . | . . . Robots Disrupted . | . . . Combat Hostiles . | . . . Robots Corrupted . | . . . Combat Hostiles . | . . . Parts Fried . | . . . Impact Corruptions . | . . . Robots Melted . | . . . Combat Hostiles . | . . . Parts Melted . | . . . Heat Transferred 50 | . 50 . Parts Sabotaged . | . . . Parts Stolen . | . . . Parts Stripped . | . . . Power Chain Reactions . | . . . Alert | -11 -10 -10 ------- Run | Yrd Mat Sub Maximum Alert Level . | . . . Low Security (%) 100 | 100 100 . Level 1 . | . . . Level 2 . | . . . Level 3 . | . . . Level 4 . | . . . Level 5 . | . . . High Security . | . . . Max Security . | . . . Peak Influence 172 | . 172 . Initial . | . . . Average 75 | . 85 . Influence Increases 414 | . 362 52 Destroy 0b10 Robot/C 260 | . 220 40 Destroy 0b10 Robot/NC 35 | . 35 . Destroy Leader 56 | . 56 . Allied During Kill 12 | . . 12 Disable Machine 15 | . 15 . Destroy Structure 36 | . 36 . Influence Decreases 362 | . 206 156 Entered New Map 76 | . . 76 Time Decay 276 | . 196 80 Lost Part 10 | . 10 . Squads Dispatched 3 | . 3 . Investigation . | . . . Extermination . | . . . Reinforcement 3 | . 3 . Assault . | . . . Garrison . | . . . Intercept . | . . . Searches Triggered . | . . . Construction Impeded . | . . . Haulers Reinforced . | . . . Active Scanning Responses . | . . . Cargo Convoy Interrupts . | . . . Stealth | -11 -10 -10 --------- Run | Yrd Mat Sub Distress Signals 2 | . 2 . Communications Jammed . | . . . Distress Signals . | . . . Times Spotted 26 | . 18 8 Peak Tracking Total 4 | . 4 2 Tactical Retreats . | . . . Traps | -11 -10 -10 ------- Run | Yrd Mat Sub Traps Triggered 3 | . . 3 Indirectly . | . . . Trap Hack Attempts . | . . . Triggered . | . . . Disarmed . | . . . Reprogrammed . | . . . Reused . | . . . Traps Extracted . | . . . Installed . | . . . Triggered . | . . . Machines | -11 -10 -10 ---------- Run | Yrd Mat Sub Machines Disabled 1 | . 1 . Max in Single Turn 1 | . 1 . Machines Repaired . | . . . Machines Dismantled . | . . . Machines Sabotaged . | . . . Overloaded Fab Kills . | . . . Hacking | -11 -10 -10 --------- Run | Yrd Mat Sub Machines Accessed 3 | . 2 1 Terminals 2 | . 2 . Fabricators . | . . . Repair Stations . | . . . Recycling Units . | . . . Scanalyzers . | . . . Garrison Access . | . . . Total Hacks 7 | . 3 4 Successful 4 | . . 4 Failed 3 | . 3 . Catastrophic 1 | . 1 . Database Lockouts . | . . . Manual 4 | . 3 1 Terminals 3 | . 3 . Fabricators . | . . . Repair Stations . | . . . Recycling Units . | . . . Scanalyzers . | . . . Garrison Access . | . . . Terminal Hacks 4 | . . 4 Record 4 | . . 4 Fabricator Hacks . | . . . Repair Station Hacks . | . . . Recycling Unit Hacks . | . . . Scanalyzer . | . . . Garrison Access Hacks . | . . . Unauthorized Hacks . | . . . Terminals . | . . . Fabricators . | . . . Repair Stations . | . . . Recycling Units . | . . . Scanalyzers . | . . . Garrison Access . | . . . Data Cores Recovered . | . . . Used . | . . . Hacking Detections 2 | . 2 . Full Trace Events . | . . . Feedback Events . | . . . Feedback Blocked . | . . . Robot Schematics Acquired . | . . . Robots Built . | . . . Authchips . | . . . Time . | . . . Total Robot Build Rating . | . . . Part Schematics Acquired . | . . . Parts Built . | . . . Authchips . | . . . Time . | . . . Total Part Build Rating . | . . . Part Studies Acquired . | . . . Parts Repaired . | . . . Time . | . . . Parts Recycled . | . . . Recycled Matter . | . . . Retrieved Matter . | . . . Retrieved Components . | . . . Parts Scanalyzed . | . . . Part Schematics Acquired . | . . . Parts Damaged . | . . . Bothacking | -11 -10 -10 ------------ Run | Yrd Mat Sub Used RIF Installer . | . . . Robots Hacked . | . . . Non-combat . | . . . Combat . | . . . Robot Hacks Applied . | . . . Relay Couplers Released . | . . . Fabnet Peak Effective % . | . . . Robots Rewired . | . . . Allies Hacked . | . . . Hacks Repelled . | . . . Allies | -11 -10 -10 -------- Run | Yrd Mat Sub Total Allies 6 | . . 6 Largest Group 6 | . . 6 Highest-Rated Group 114 | . . 114 Highest-Rated Ally 19 | . . 19 Total Orders . | . . . Ally Attacks 5 | . . 5 Total Damage 214 | . . 214 Kills 2 | . . 2 Allies Corrupted . | . . . Allies Melted . | . . . Intel | -11 -10 -10 ------- Run | Yrd Mat Sub Active Infowar (turns) 210 | . 210 . T.N.C. 210 | . 210 . Robot Analysis Total . | . . . Derelict Logs Recovered 2 | . . 2 Drone Launches . | . . . Drone Recoveries . | . . . Exploration | -11 -10 -10 ------------- Run | Yrd Mat Sub Turns Passed 1214 | 58 433 723 Spaces Moved 1854 | 43 484 1327 Core 3 | 3 . . Treads . | . . . Legs 65 | 40 25 . Wheels . | . . . Hover . | . . . Flight 1786 | . 459 1327 Fastest Speed 37 | 50 37 37 Average Speed 40 | 115 41 37 Slowest Speed 200 | 120 200 117 Overloaded Moves . | . . . Propulsion Burnouts . | . . . Robots Hopped 1 | . 1 . Potential Cave-ins . | . . . Cave-ins Triggered . | . . . Exploration Rate (%) 54 | 3 87 72 Regions Visited 2 Branch Regions 1 Pre-discovered Areas . | . . . Known Exits Taken . | . . . Unknown Exits Taken 2 | 1 1 . Scrap Searched 3 | . . 3 Spaces Dug . | . . . Terrain Destroyed 43 | . 43 . Melee . | . . . Projectile . | . . . AOE 43 | . 43 . Terrain Rammed . | . . . Walls Destroyed . | . . . Machines Disabled . | . . . Actions | -11 -10 -10 --------- Run | Yrd Mat Sub Total 2170 | 48 597 1525 Wait 173 | . 11 162 Move 1850 | 42 481 1327 Hop 1 | . 1 . Pick Up 10 | . 9 1 Fast Attach 14 | 6 4 4 Attach 7 | . 2 5 Detach 7 | . 3 4 Swap 7 | . 6 1 Drop 15 | . 7 8 Fire 86 | . 73 13 Melee . | . . . Ram . | . . . Kick . | . . . Crush . | . . . Escape Stasis . | . . . Rewire . | . . . Trap . | . . . Miscellaneous . | . . . Route ------- -11/Scrapyard -10/Materials (discovered 5 exits: [*Mat x3] / [*Min] / *Sub) -10/Subcaves (discovered 3 exits: [*Mat x2] / [*Scr]) History --------- Turn | Location | Event 28 | -11/Scrapyard | Discovered new exit (range 15) 59 | -11/Scrapyard | Entered Materials 60 | -10/Materials | Met a group of wandering Federalists 249 | -10/Materials | Discovered new exit (range 16) 304 | -10/Materials | Discovered new exit (range 5) 306 | -10/Materials | Build established: Mutant 435 | -10/Materials | Discovered new exit (range 11) 442 | -10/Materials | Core integrity fell below 50% 460 | -10/Materials | Discovered new exit (range 6) 471 | -10/Materials | Discovered new exit (range 14) 492 | -10/Materials | Entered Subcaves 493 | -10/Subcaves | Continued accompanying wandering Federalists (6) 534 | -10/Subcaves | Learned Materials emergency access door positions 609 | -10/Subcaves | Lost 3 allies 674 | -10/Subcaves | Shifting Twisted Machinery released Riot Gun 705 | -10/Subcaves | Wandering Federalist uncovered a shortcut to Scraptown 843 | -10/Subcaves | Shifting Twisted Machinery released Sub. Machine Gun 844 | -10/Subcaves | Shifting Twisted Machinery released Flamer 931 | -10/Subcaves | Shifting Twisted Machinery released Spk. Treads 1010 | -10/Subcaves | Visited triangular shrine 1016 | -10/Subcaves | Found Prototype Device 1016 | -10/Subcaves | Identified V3-11A's Pendant 1021 | -10/Subcaves | Befriended Subdweller 1041 | -10/Subcaves | Learned Materials interactive machine intel 1076 | -10/Subcaves | Befriended Subdweller 1081 | -10/Subcaves | Befriended Subdweller 1129 | -10/Subcaves | Visited Clippyterm 1130 | -10/Subcaves | Learned Factory stockpile data 1158 | -10/Subcaves | Discovered new exit (range 5) 1181 | -10/Subcaves | Befriended Subdweller 1191 | -10/Subcaves | Befriended Subdweller 1191 | -10/Subcaves | Befriended Subdweller 1196 | -10/Subcaves | Discovered new exit (range 12) 1199 | -10/Subcaves | Core integrity fell below 20% 1215 | -10/Subcaves | Destroyed by Piercing Trap Last Messages --------------- 01198_ Flight Unit destroyed. 01200_ 3J-APU(R) triggered Piercing Trap. 01200_ Spikes shoot up from the floor. 01200_ 3J-APU(R) suffers critical hit (Impale). 01205_ TR-ZG3(R) triggered Piercing Trap. 01205_ Spikes shoot up from the floor. 01205_ TR-ZG3(R) suffers critical hit (Impale). 01206_ 3J-APU(R) triggered Piercing Trap. 01206_ Spikes shoot up from the floor. 01206_ 3J-APU(R) suffers critical hit (Impale). 01206_ 3J-APU(R) destroyed. 01209_ TR-ZG3(R) affixes Scrap Shield Fragment to Scrap Shield. 01213_ S-10 Pest destroyed. 01213_ Y-45 Defender destroyed. 01215_ Triggered Piercing Trap. 01215_ Spikes shoot up from the floor. Map ----- +----------------------------------------------------+ | | | | | | | ?????????????????????????????????????????????????? | | ?????????????????????????????????????????????????? | | ?????????????????????????????????????????????????? | | ?????????????????????????????????????????????????? | | ?????????????????????????????????????????????????? | | ?????????????????????????????????????????????????? | | ?????????????????????????????????????????????????? | | ?????????????????????????????????????????????????? | | ?????????????????????????????????????????????????? | | ?????????????????????????????????????????????????? | | ?????????????????????????????????????????????????? | | ?????????????????????????????????????????????????? | | ?????????????????????????????????????????????????? | | ?????????????????????????????????????????????????? | | ?????????????????????????????????????????????????? | | ???????????########??????????????????????????????? | | ???????????#"# """##?????????????????????????????? | | #?????????##" """" #####?????????????????????????? | | #?????????#"" ?#"" ## ####??????????????????????? | | #?????##??# ##?# "" #??????????? ? ???????? | | #????# #??# ### # ##?????# < #??????? | | ##### #### ###; # #" ###;;; ;! #???????? | | | # ## @!&; ;;!%[ #??????????? | | ## ## RR R" =%*R % * #??????????? | | # ##" #### ## ^ & #??????????? | | ### #### #??# ##### ;; ; #??????????? | | ?## ## # ###?# #??#####;;; #??????????? | | ?# # #?# #???????# ##??????????? | | ?# ## #?## ###????????#### #???????????? | | ## ##### #??###??????????????? ##???????????? | | # #?### ##?????????????????????#????????????? | | ### #???????????????????????????????????? | | ## ##???????????????????????????????????? | | ## ## ##????????????????????????????????????? | | ### #?????????????????????????????????????? | | # #?????????????????????????????????????? | | #?????????????????????????????????????? | | #?????????????????????????????????????? | | #?????????????????????????????????????? | | ##????????????????????????????????????? | | #?????????????????????????????????????? | | "" #????????????????????????????????????? | | #""" #????????????????????????????????##### | | # ###" "" #?????????????????????????????## | | ######"""" ##??????????????????????######## | | """#### #??????????????????##### | | """"????? #??????????????????# | +----------------------------------------------------+ Best States ------------- Heat Dissipation 25 Energy Generation 10 Energy Capacity 250 Matter Stores 300 Matter Capacity 300 Sight Range 16 Terrain Scan Density 10 Evasion (%) 62 Offensive Hacking 10 Item Schematics ----------------- None Robot Schematics ------------------ None Fabricated ------------ Nothing Repaired ---------- Nothing Studied --------- None Alien Tech Used ----------------- None Achievements -------------- None Challenges ------------ None Game ------ Seed AnalysisMetafiberSuit Manual? 0 Play Time 00:17:43 Cumulative 108.2 hours Start 2026.09.13 @ 12:21:02 End 2026.09.13 @ 12:32:32 Sessions 1 Manual Loads 0 Difficulty Rogue Special Mode None Game No. 123 Rogue 123 Adventurer 0 Explorer 0 Win Type - Total 0 Types 0/0/0/0/0/0/0/0/0/0 Lore% 45 Gallery% 51 Achievement% 42 Wizard Run 0 Options --------- Layout 1 ASCII 0 Keyboard 0 Movement Mouse Keybinds 0 Fullscreen 2 Font 24/Smallcaps Map View 50x35 Zoom Use 0% Tactical HUD 1 Map Filters NONE Filters NONE Steam 1 RUN: bfe54f25-cb64-4144-98bc-950946521465